[Event "TePe Sigeman Co 2024"]
[Site "Malmo"]
[Date "2024.05.02"]
[Round "6.4"]
[White "Keymer, Vincent"]
[Black "Abdusattorov, Nodirbek"]
[Result "0-1"]
[ECO "D15"]
[WhiteElo "2726"]
[BlackElo "2765"]
[Annotator "TA"]
[PlyCount "100"]
[EventDate "2024.04.27"]
[EventType "tourn"]
[EventCountry "SWE"]
[SourceTitle "playchess.com"]
[Source "ChessBase"]
[SourceQuality "1"]
[TimeControl "40/5400+30:1800+30"]

{[%evp 36,100,0,0,0,0,0,0,0,-25,-38,-50,-50,-45,-50,-56,-72,-46,-43,-91,-97,-82,-92,-80,-95,-91,-91,-112,-104,-146,-39,-46,-59,-71,-36,-68,-70,-73,-57,-131,-113,-141,-20,-132,-132,-153,-82,-79,-85,-81,-83,-573,-551,-601,-568,-4902,-4806,-5177,-4793,-29979,-29979,-29985,-29986,-29986,-29987,-29984,-29985]} 1. Nf3 {[%emt 0:00:04]} d5 {[%emt 0:00:22]} 2. e3 {[%emt 0:00:04]} Nf6 {[%emt 0:00:36]} 3. c4 {[%emt 0:00:04]} c6 {[%emt 0:00:11]} 4. Nc3 {[%emt 0:01:12]} a6 {[%emt 0:00:25]} 5. d4 {[%emt 0:09:50]} b5 {[%emt 0:00:22]} 6. b3 {[%emt 0:01:33]} Bg4 {[%emt 0:00:30]} 7. a4 {[%emt 0:01:13] D15: Slav Defence: 4 Nc3 a6 and gambit lines after 4 Nc3 dxc4.} bxc4 $1 {[%emt 0:02:04][%mdl 4] is recently more successful than 7...b4.} 8. bxc4 {[%emt 0:00:10]} Nbd7 {[%emt 0:00:30]} 9. Be2 {[%emt 0:13:36]} e6 {[%emt 0:00:26]} 10. c5 {[%emt 0:00:24]} a5 {[%emt 0:00:12]} 11. O-O {[%emt 0:04:25]} Be7 {[%emt 0:10:33]} 12. Ne1 $146 {[%emt 0:11:43]} ({Predecessor:} 12. Bd2 O-O 13. h3 Bxf3 14. Bxf3 e5 15. Be2 Ne8 16. Na2 Nc7 17. Nc1 Ne6 18. Nb3 {1-0 Urkedal,F (2569)-Dastan,B (2572) EU-chT 23rd Terme Catez 2021 (7.2)}) 12... Bxe2 {[%emt 0:03:28]} 13. Qxe2 {[%emt 0:00:11]} e5 {[%emt 0:00:53]} 14. Nd3 {[%emt 0:10:14]} exd4 {[%emt 0:14:57]} 15. exd4 {[%emt 0:00:04]} O-O {[%emt 0:00:04]} 16. f3 {[%emt 0:02:14]} Re8 {[%emt 0:00:57]} 17. Qc2 {[%emt 0:04:45]} Nf8 {[%emt 0:06:35]} 18. Ne2 {[%emt 0:05:21]} N6d7 {[%emt 0:02:21]} 19. f4 {[%emt 0:06:14]} Ne6 {[%emt 0:05:40]} 20. Bb2 {[%emt 0:01:12]} Qc8 {[%emt 0:01:45]} 21. Ng3 {[%emt 0:01:05]} Rb8 {[%emt 0:01:58]} 22. Rae1 {[%emt 0:04:54]} Bh4 {[%emt 0:13:01]} 23. f5 {[%emt 0:08:03]} Ng5 {[%emt 0:02:50]} 24. Rxe8+ {[%emt 0:00:05]} Qxe8 {[%emt 0:00:04]} 25. Bc1 {[%emt 0:00:04]} Ne4 {[%emt 0:00:41]} 26. Bf4 {[%emt 0:00:17]} Rb7 {[%emt 0:01:48]} 27. Nh5 {[%emt 0:05:05]} (27. Re1 $15) 27... g6 {[%emt 0:03:44]} 28. Ng3 {[%emt 0:02:49]} Nxg3 {[%emt 0:01:33]} 29. hxg3 {[%emt 0:00:42]} (29. Bxg3 $2 Bxg3 30. hxg3 Qe3+ 31. Kh2 Qxd4 $19) 29... Bf6 {[%emt 0:00:05]} 30. Qc3 {[%emt 0:07:19]} Qe4 {[%emt 0:00:08]} (30... gxf5 $6 31. Re1 Qc8 32. Kh2 $11) 31. Be5 {[%emt 0:00:24]} Qe3+ {[%emt 0:14:21]} ({Much weaker is} 31... gxf5 $6 32. Re1 (32. Nf2 Qe2 $11) 32... Qg4 33. Bf4 $11) 32. Kh2 {[%emt 0:00:04]} Bxe5 {[%emt 0:01:27]} (32... gxf5 $1 $17 {And now ...Bxe5 would win.} 33. Re1 Qh6+ 34. Kg1 Nxe5 35. dxe5 Be7 36. Qxa5 Rb3) 33. dxe5 $15 {[%emt 0:00:01]} d4 {[%emt 0:00:28]} 34. Qc4 $1 {[%emt 0:01:18]} (34. Qc2 $2 Nxe5 35. Nxe5 Qxe5 $19) 34... Nxe5 {[%emt 0:00:20]} 35. Nxe5 {[%emt 0:00:01]} Qxe5 {[%emt 0:00:13]} 36. Qa6 {[%emt 0:00:12]} Qc7 $1 {[%emt 0:01:06]} 37. f6 {[%emt 0:01:21]} (37. Rf4 $1 $15) 37... h5 $1 $17 {[%emt 0:02:24]} 38. Qe2 {[%emt 0:00:19] [#]} Qd8 {[%emt 0:01:45]} (38... Qb8 $1 $17 {White must now prevent ...Rb3.} 39. Qe4 Rb3) 39. Qe4 {[%emt 0:00:43] [#]} (39. Qa6 $1 $11 Qc7 40. Qe2) 39... Rc7 $1 $17 {[%emt 0:01:56]} 40. Qf4 {[%emt 0:00:35]} Kh7 {[%emt 0:03:18]} (40... d3 $142 {...Rd7 would now be deadly.} 41. Rf3 Rd7) 41. g4 $17 {[%emt 0:13:25]} Rd7 {[%emt 0:02:12]} 42. Re1 {[%emt 0:00:27]} ({But not} 42. gxh5 $2 Qc7 43. Qxc7 (43. hxg6+ $2 Kxg6 44. Qxc7 Rxc7 $19) 43... Rxc7 $19) 42... Qf8 {[%emt 0:01:25]} 43. Re5 $2 {[%emt 0:11:19][%mdl 8192]} (43. Re7 $17 {was the crucial defense.} Rxe7 44. fxe7 Qxe7 45. gxh5) 43... hxg4 $19 {[%emt 0:08:13]} 44. Qxg4 {[%emt 0:02:51]} Rd8 {[%emt 0:03:24]} 45. Qe4 {[%emt 0:01:53]} Qh6+ {[%emt 0:01:17]} 46. Kg1 {[%emt 0:00:18]} d3 {[%emt 0:00:49]} 47. Qc4 {[%emt 0:01:45]} Kg8 {[%emt 0:00:37]} 48. Qe4 {[%emt 0:01:51]} d2 {[%emt 0:00:52]} 49. Re8+ {[%emt 0:00:04]} Rxe8 {[%emt 0:00:09]} 50. Qxe8+ {[%emt 0:00:04]} Qf8 {[%emt 0:00:06]} 0-1

[Event "TePe Sigeman Co 2024"]
[Site "Malmo"]
[Date "2024.05.03"]
[Round "7.1"]
[White "Ju, Wenjun"]
[Black "Korobov, Anton"]
[Result "1-0"]
[ECO "B51"]
[WhiteElo "2559"]
[BlackElo "2651"]
[Annotator "TA"]
[PlyCount "149"]
[EventDate "2024.04.27"]
[EventType "tourn"]
[EventCountry "SWE"]
[SourceTitle "playchess.com"]
[Source "ChessBase"]
[SourceQuality "1"]
[TimeControl "40/5400+30:1800+30"]

{[%evp 75,149,10,61,62,81,70,74,76,60,2,56,7,4,0,0,0,0,0,0,0,0,0,0,0,0,0,0,0,0,0,0,-8,-8,-8,0,0,0,0,0,0,0,0,0,0,29952,29954,29953,29957,29957,29957,29957,29959,29960,29957,29957,0,29959,29962,29961,29962,29961,29963,29961,29964,29964,29963,29962,29963,29961,29946,12825,12847,7514,5197,4634,4627]} 1. e4 {[%emt 0:00:03]} c5 {[%emt 0:00:10]} 2. Nf3 {[%emt 0:00:03]} d6 {[%emt 0:00:07]} 3. Bb5+ {[%emt 0:00:07]} Nd7 {[%emt 0:00:07]} 4. d4 {[%emt 0:00:12]} cxd4 {[%emt 0:00:20]} 5. Qxd4 {[%emt 0:00:05]} a6 {[%emt 0:00:15]} 6. Be2 {[%emt 0:00:09]} Ngf6 {[%emt 0:00:28]} 7. O-O {[%emt 0:00:23]} e6 {[%emt 0:00:49]} 8. Nc3 {[%emt 0:12:41]} Qc7 {[%emt 0:02:58]} 9. a4 {[%emt 0:00:54]} b6 {[%emt 0:00:28]} 10. Bg5 {[%emt 0:05:22]} Bb7 {[%emt 0:01:25]} 11. Nd2 {[%emt 0:10:18]} h6 {[%emt 0:19:21]} 12. Bxf6 {[%emt 0:06:15]} Nxf6 {[%emt 0:00:28]} 13. Nc4 {[%emt 0:00:06]} Qc5 {[%emt 0:00:21]} 14. Rad1 {[%emt 0:04:07]} Qxd4 {[%emt 0:06:06]} 15. Rxd4 {[%emt 0:00:03]} d5 {[%emt 0:00:52]} 16. exd5 {[%emt 0:00:44]} Bc5 {[%emt 0:00:55]} 17. Rdd1 {[%emt 0:07:56]} exd5 {[%emt 0:01:54]} 18. Bf3 {[%emt 0:00:31]} O-O-O {[%emt 0:01:06]} 19. Ne5 {[%emt 0:00:05]} Rhe8 {[%emt 0:00:37]} 20. Nd3 {[%emt 0:04:41]} Bd6 {[%emt 0:02:48]} 21. Ne2 {[%emt 0:02:10]} Ne4 {[%emt 0:04:19]} 22. Nd4 {[%emt 0:00:03]} Kc7 {[%emt 0:03:32]} 23. h4 {[%emt 0:02:52]} Be7 {[%emt 0:08:10]} 24. g3 {[%emt 0:01:10]} Nc5 {[%emt 0:11:27]} 25. Nxc5 {[%emt 0:05:35]} bxc5 {[%emt 0:00:28]} 26. Ne2 {[%emt 0:00:11]} g5 {[%emt 0:01:36]} 27. hxg5 {[%emt 0:09:34]} hxg5 {[%emt 0:00:10]} 28. Rd2 {[%emt 0:00:34]} Bf6 {[%emt 0:02:08]} 29. Rfd1 {[%emt 0:01:27]} Bc6 {[%emt 0:06:55]} 30. b3 {[%emt 0:00:25]} Rd7 {[%emt 0:01:41]} 31. Kf1 {[%emt 0:03:27]} Red8 {[%emt 0:02:05]} 32. Rd3 {[%emt 0:06:54]} c4 {[%emt 0:12:38]} 33. R3d2 {[%emt 0:03:26]} Rd6 {[%emt 0:00:59]} 34. Nd4 {[%emt 0:00:50]} Bd7 {[%emt 0:00:33]} 35. Bh5 {[%emt 0:06:37]} Bg7 {[%emt 0:06:09]} 36. Kg1 {[%emt 0:02:47]} f5 {[%emt 0:00:58]} 37. Be2 {[%emt 0:02:16]} Kb6 {[%emt 0:02:09]} 38. a5+ {[%emt 0:01:20]} (38. bxc4 $5 Rc8 $18) 38... Kc5 {[%emt 0:01:14]} (38... Kxa5 39. bxc4 Kb6 40. Nb3 $16) (38... Kc7 $11) 39. c3 $14 {[%emt 0:00:08]} Bxd4 {[%emt 0:00:12] [#]} 40. b4+ $1 {[%emt 0:00:03]} (40. cxd4+ Kb4 41. bxc4 dxc4 $11 (41... Kxa5 $2 42. Rb1 $18)) 40... Kc6 {[%emt 0:00:37]} 41. Rxd4 {[%emt 0:30:04]} Be6 {[%emt 0:30:15]} 42. Bf1 {[%emt 0:03:38]} ({White should try} 42. Kg2 $14) 42... Bf7 {[%emt 0:00:00]} ({Better is} 42... f4 $11) 43. R1d2 {[%emt 0:00:00]} (43. f3 $1 $14) 43... f4 $11 {[%emt 0:00:00]} 44. Bg2 {[%emt 0:00:00]} (44. gxf4 gxf4 45. Rxf4 Rg6+ 46. Bg2 Rdg8 47. Rxf7 (47. Rxc4+ $2 {is the wrong capture.} Kd6 $19) 47... Rxg2+ 48. Kf1 Rg1+ 49. Ke2 Re8+ 50. Kf3 Rd8) 44... Kb5 {[%emt 0:00:00]} 45. Bf3 {[%emt 0:00:00]} (45. gxf4 gxf4 46. Ra2 (46. Rxf4 Bg8 $17) 46... Bg6 $17) 45... fxg3 {[%emt 0:00:00]} 46. fxg3 {[%emt 0:00:00]} Re8 {[%emt 0:00:00]} 47. Bxd5 {[%emt 0:00:00]} Rxd5 {[%emt 0:00:00]} 48. Rxd5+ {[%emt 0:00:00]} Bxd5 {[%emt 0:00:00]} 49. Rxd5+ {[%emt 0:00:00]} Ka4 {[%emt 0:00:00]} 50. Kf2 {[%emt 0:00:00]} Kb3 {[%emt 0:00:00]} 51. b5 {[%emt 0:00:00]} axb5 {[%emt 0:00:00]} 52. Rxb5+ {[%emt 0:00:00]} Kxc3 {[%emt 0:00:00]} 53. a6 {[%emt 0:00:00]} Ra8 {[%emt 0:00:00]} 54. Rb6 {[%emt 0:00:00]} Kd4 {[%emt 0:00:00]} 55. Ke2 {[%emt 0:00:00]} Kc5 {[%emt 0:00:00]} 56. Rg6 {[%emt 0:00:00]} Kb5 {[%emt 0:00:00]} 57. Rxg5+ {[%emt 0:00:00]} Kxa6 {[%emt 0:00:00]} 58. Rc5 {[%emt 0:00:00]} Re8+ {[%emt 0:00:00]} 59. Kf3 {[%emt 0:00:00]} Rf8+ $2 {[%emt 0:00:00][%mdl 8192]} (59... Rh8 $11) 60. Kg2 {[%emt 0:00:32]} Rg8 {[%emt 0:00:00]} 61. Rxc4 {[%emt 0:00:16]} Kb5 {[%emt 0:00:00]} 62. Rc3 {[%emt 0:00:22]} Kb4 {[%emt 0:00:00]} 63. Rc1 {[%emt 0:00:35]} Kb5 {[%emt 0:00:00]} 64. Rc2 {[%emt 0:00:38]} Kb6 {[%emt 0:00:00]} 65. Rc1 {[%emt 0:03:30]} Kb5 $1 {[%emt 0:00:00]} 66. Kf3 {[%emt 0:00:51]} Rf8+ {[%emt 0:00:00]} 67. Ke4 {[%emt 0:00:06]} Rg8 {[%emt 0:00:00]} 68. Kf4 {[%emt 0:00:01]} Rf8+ {[%emt 0:00:00]} 69. Ke5 {[%emt 0:00:03]} Re8+ {[%emt 0:00:00]} 70. Kf5 {[%emt 0:01:32]} Rf8+ {[%emt 0:00:00] [#]} 71. Ke6 $1 {[%emt 0:01:15]} Re8+ {[%emt 0:00:00]} 72. Kf7 {[%emt 0:01:26]} Re4 {[%emt 0:00:00]} 73. Rg1 {[%emt 0:02:24]} Rg4 {[%emt 0:00:00]} 74. Kf6 {[%emt 0:00:07]} Kc6 {[%emt 0:01:42]} 75. Kf5 {[%emt 0:00:03]} 1-0

[Event "TePe Sigeman Co 2024"]
[Site "Malmo"]
[Date "2024.05.03"]
[Round "7.2"]
[White "Abdusattorov, Nodirbek"]
[Black "Maurizzi, Marc`Andria"]
[Result "1-0"]
[ECO "E06"]
[WhiteElo "2765"]
[BlackElo "2605"]
[Annotator "TA"]
[PlyCount "61"]
[EventDate "2024.04.27"]
[EventType "tourn"]
[EventCountry "SWE"]
[SourceTitle "playchess.com"]
[Source "ChessBase"]
[SourceQuality "1"]
[TimeControl "40/5400+30:1800+30"]

{[%evp 10,61,32,0,39,37,29,30,39,34,43,37,46,13,7,5,51,20,55,55,69,73,89,91,86,80,87,91,90,70,91,85,79,89,91,104,121,135,117,68,61,29,135,138,292,301,285,312,315,293,301,262,286,272]} 1. d4 {[%emt 0:00:08]} d5 {[%emt 0:00:02]} 2. c4 {[%emt 0:00:11]} e6 {[%emt 0:00:02]} 3. Nf3 {[%emt 0:00:15]} Nf6 {[%emt 0:00:03]} 4. g3 {[%emt 0:00:08]} Be7 {[%emt 0:11:36]} 5. Bg2 {[%emt 0:00:09]} O-O {[%emt 0:00:03]} 6. Qc2 {[%emt 0:00:07]} a5 {[%emt 0:05:59][%cal Ba7a5,Ba5a4][%mdl 32]} 7. O-O {[%emt 0:02:10]} Nc6 {[%emt 0:00:21]} 8. a3 {[%emt 0:06:13]} dxc4 {[%emt 0:01:13] White has an edge.} 9. Qxc4 {[%emt 0:01:26]} a4 {[%emt 0:01:22]} 10. Nc3 {[%emt 0:05:27][%cal Oa1b1]} Bd7 {[%emt 0:00:32]} 11. Bf4 {[%emt 0:06:23][%cal Oe2e4]} (11. Nxa4 $2 b5 (11... Nxd4 12. Nc3 $11) 12. Qd3 (12. Qxb5 $2 Nxd4 13. Qd3 Nxf3+ 14. Qxf3 Rxa4 $19) 12... bxa4 $19 (12... Rxa4 $2 13. b3 $19)) 11... Na5 {[%emt 0:03:06]} 12. Qd3 {[%emt 0:00:24]} c5 {[%emt 0:16:53]} (12... Nd5 $11 {feels stronger.}) 13. Rad1 {[%emt 0:14:22][%cal Ba1d1,Bd1d3,Bd3d7][%mdl 32]} Bc6 {[%emt 0:10:34]} 14. e4 {[%emt 0:01:30][%cal Be2e4,Be4e5][%mdl 32] [#] And now d5 would win.} cxd4 {[%emt 0:08:03]} 15. Nxd4 {[%emt 0:00:07]} Bc5 {[%emt 0:14:48]} 16. Nxc6 {[%emt 0:09:12]} Qxd3 {[%emt 0:00:26]} 17. Rxd3 {[%emt 0:02:23]} Nxc6 {[%emt 0:00:01] [#]} 18. e5 $1 {[%emt 0:01:12]} Nh5 {[%emt 0:00:43]} 19. Rd7 {[%emt 0:03:30]} Nxf4 {[%emt 0:02:34]} 20. gxf4 {[%emt 0:00:28][%cal Of1d1,Bg3f4,Bf4f5,Bf5e6][%mdl 32]} Nd4 {[%emt 0:05:54]} 21. Rxb7 {[%emt 0:10:50] White is much more active.} (21. Bxb7 Ra7 $14) 21... Ra7 {[%emt 0:10:37]} 22. Rd1 {[%emt 0:01:22]} Rxb7 {[%emt 0:00:29]} 23. Bxb7 {[%emt 0:00:02]} Ba7 {[%emt 0:00:25]} 24. Be4 {[%emt 0:07:32]} ({White should try} 24. Nxa4 $16 {b4 would now be deadly.} f6 25. f5) 24... f6 $14 {[%emt 0:01:38]} 25. f5 {[%emt 0:00:39]} (25. Nxa4 {simplifies} fxe5 26. fxe5 Nb3 27. Kh1) 25... Rd8 {[%emt 0:03:29]} (25... fxe5 $11 26. fxe6 (26. Nxa4 exf5 27. Bd5+ Kh8 $15) 26... Nxe6) 26. fxe6 $16 {[%emt 0:02:53] Threatens to win with e7.} (26. Nxa4 $2 Ne2+ (26... exf5 27. Bd3 $11) (26... fxe5 27. Kf1 $16) 27. Kf1 Rxd1+ $17) 26... Ne2+ $2 {[%emt 0:00:07] This move loses the game for Black.} (26... fxe5 $16 {was necessary.} 27. e7 (27. Nxa4 Ne2+ 28. Kf1 Rxd1+ $14) 27... Re8 28. Nxa4 Rxe7) 27. Kf1 $18 {[%emt 0:00:47][%cal Rd1d8] White has a decisive advantage.} (27. Nxe2 $2 {perishes.} Rxd1+ 28. Kg2 fxe5 $19) 27... Rxd1+ {[%emt 0:00:03]} 28. Nxd1 {[%emt 0:00:22]} Nf4 {[%emt 0:00:04]} 29. exf6 {[%emt 0:00:34]} (29. e7 Kf7 30. exf6 (30. Bxh7 fxe5 31. Bc2 Kxe7 $18) 30... gxf6 31. Bxh7 Kxe7 $18) 29... gxf6 {[%emt 0:00:07]} 30. Nc3 {[%emt 0:00:25]} Kf8 {[%emt 0:00:24]} 31. Bf5 {[%emt 0:00:21] Weighted Error Value: White=0.12 (very precise) /Black=0.23 (precise) .  Mistake:       	White=1     	Black=3      Inaccurate:     	White=3     	Black=1      OK:         	White=9     	Black=10     Best:        	White=1     	Black=2      Strong:       	White=1     	---} (31. Nxa4 h5 32. Bf5 Bd4 $18) 1-0

[Event "TePe Sigeman Co 2024"]
[Site "Malmo"]
[Date "2024.05.03"]
[Round "7.3"]
[White "Svidler, Peter"]
[Black "Keymer, Vincent"]
[Result "1/2-1/2"]
[ECO "C77"]
[WhiteElo "2689"]
[BlackElo "2726"]
[Annotator "TA"]
[PlyCount "83"]
[EventDate "2024.04.27"]
[EventType "tourn"]
[EventCountry "SWE"]
[SourceTitle "playchess.com"]
[Source "ChessBase"]
[SourceQuality "1"]
[TimeControl "40/5400+30:1800+30"]

{[%evp 11,83,22,22,7,8,0,0,0,7,-6,-5,7,0,0,0,8,11,5,11,0,15,4,16,0,33,25,32,35,33,28,28,30,35,31,42,36,41,40,61,60,55,0,0,0,48,0,0,0,0,0,0,0,0,0,0,0,0,0,0,0,0,0,0,0,0,0,0,0,0,0,0,0,0,0]} 1. e4 {[%emt 0:00:04]} e5 {[%emt 0:00:03]} 2. Nf3 {[%emt 0:00:09]} Nc6 {[%emt 0:00:03]} 3. Bb5 {[%emt 0:00:09]} a6 {[%emt 0:00:04]} 4. Ba4 {[%emt 0:00:06]} Nf6 {[%emt 0:00:03]} 5. d3 {[%emt 0:00:12]} Bc5 {[%emt 0:01:33]} 6. Bxc6 dxc6 {[%emt 0:00:05]} 7. Qe2 {[%emt 0:00:22]} (7. Nxe5 $2 Qd4 8. Be3 Qxe5 $19) 7... Qe7 {[%emt 0:11:13]} 8. Nbd2 {[%emt 0:02:36]} Bg4 {[%emt 0:05:30]} 9. h3 {[%emt 0:01:03]} Bh5 {[%emt 0:00:05]} 10. g4 {[%emt 0:10:20]} Bg6 {[%emt 0:00:18]} 11. Nb3 {[%emt 0:00:24]} Bd6 {[%emt 0:08:06]} 12. Nh4 {[%emt 0:00:21]} Nd7 {[%emt 0:02:30]} 13. Nf5 {[%emt 0:00:46]} Bxf5 {[%emt 0:00:05]} 14. gxf5 {[%emt 0:02:24]} g6 {[%emt 0:01:38]} 15. Qf3 {[%emt 0:02:55]} O-O-O {[%emt 0:06:12]} 16. Be3 {[%emt 0:08:30]} Bb4+ {[%emt 0:09:33]} 17. Ke2 {[%emt 0:05:54]} (17. Nd2 {simplifies} Bc5 18. O-O-O Bxe3 19. fxe3 Kb8 20. Rhg1) 17... Nc5 {[%emt 0:08:45]} 18. Rag1 {[%emt 0:04:57]} Rhg8 {[%emt 0:12:35]} 19. h4 {[%emt 0:11:21][%cal Bh3h4,Bh4h5][%mdl 32]} (19. fxg6 {simplifies} Rxg6 20. Rxg6 fxg6 21. Nxc5 Bxc5 22. Qg4+) 19... Qd6 {[%emt 0:01:09]} 20. h5 {[%emt 0:13:18]} Kb8 {[%emt 0:01:21]} (20... Nxd3 $2 21. Rd1 $18) 21. Bc1 {[%emt 0:11:51]} Nxb3 {[%emt 0:04:34]} 22. axb3 {[%emt 0:00:11]} Bc5 {[%emt 0:01:04][%cal Bb4c5,Bc5b6,Bb6d4][%mdl 32]} 23. Rg3 {[%emt 0:08:54]} Bb6 {[%emt 0:00:44]} 24. Bd2 {[%emt 0:02:51]} Bd4 {[%emt 0:02:42]} 25. hxg6 {[%emt 0:02:45]} hxg6 {[%emt 0:01:43]} 26. Rh7 {[%emt 0:00:34]} (26. c3 $14 Bb6 27. Rh7) 26... Bxb2 $11 {[%emt 0:01:35]} 27. Rxf7 {[%emt 0:00:56]} Qc5 {[%emt 0:02:40]} (27... gxf5 $11 28. Rxg8 (28. exf5 $2 e4 $19) (28. Rxf5 Qc5 $11) (28. Qxf5 Rxg3 29. fxg3 Qc5 $11) 28... Rxg8) 28. c4 {[%emt 0:01:18]} (28. Rxg6 Qxc2 $15) (28. fxg6 $14 Qxc2 29. g7) 28... gxf5 {[%emt 0:03:28] The position is equal.} 29. Rxg8 {[%emt 0:02:11]} (29. exf5 Rge8 30. Bg5 Rc8) 29... Rxg8 {[%emt 0:00:01]} 30. Qxf5 {[%emt 0:00:06][%cal Of7c7]} Qa3 {[%emt 0:09:31][%cal Ob2d4]} 31. b4 {[%emt 0:03:40]} Rd8 {[%emt 0:00:25]} 32. Rd7 {[%emt 0:00:04]} Rc8 {[%emt 0:02:13]} 33. Qf6 {[%emt 0:01:26]} Qa2 {[%emt 0:03:22] [#] White must now prevent ...Bc3.} 34. Rd8 {[%emt 0:00:44] Rxc8+ would kill now.} b6 {[%emt 0:01:57] And now ...Bc3 would win.} 35. Kf3 {[%emt 0:02:30]} Qb3 {[%emt 0:00:26] Hoping for ...Qd1+.} 36. Be3 {[%emt 0:00:44]} Rxd8 {[%emt 0:00:37]} 37. Qxd8+ {[%emt 0:00:05] KQB-KQB} Kb7 {[%emt 0:00:02]} 38. Bxb6 $1 {[%emt 0:00:36]} Qd1+ {[%emt 0:00:04]} 39. Kg3 {[%emt 0:00:11]} Qg1+ {[%emt 0:00:04]} ({Weaker is} 39... Kxb6 40. Qb8#) 40. Kf3 {[%emt 0:00:17]} Qd1+ {[%emt 0:00:22]} 41. Kg3 {[%emt 0:30:02] The board is on fire.} Qg1+ {[%emt 0:31:54]} ({Inferior is} 41... Kxb6 42. Qb8#) 42. Kf3 {[%emt 0:00:04] Weighted Error Value: White=0.06 (flawless) /Black=0.05 (flawless) .  Mistake:       	White=2     	Black=1      Inaccurate:     	---       	Black=1      OK:         	White=13    	Black=13     Best:        	White=2     	Black=3      Strong:       	White=1     	---} 1/2-1/2

[Event "TePe Sigeman Co 2024"]
[Site "Malmo"]
[Date "2024.05.03"]
[Round "7.4"]
[White "Grandelius, Nils"]
[Black "Erigaisi Arjun"]
[Result "1/2-1/2"]
[ECO "B51"]
[WhiteElo "2664"]
[BlackElo "2756"]
[Annotator "TA"]
[PlyCount "130"]
[EventDate "2024.04.27"]
[EventType "tourn"]
[EventCountry "SWE"]
[SourceTitle "playchess.com"]
[Source "ChessBase"]
[SourceQuality "1"]
[TimeControl "40/5400+30:1800+30"]

{[%evp 62,130,102,103,138,138,106,96,242,212,248,247,237,226,204,127,127,97,140,140,125,137,137,137,119,96,96,96,104,89,89,89,89,89,89,89,89,89,91,8,8,8,8,8,8,8,8,8,8,8,8,8,8,0,8,8,8,8,8,8,8,8,8,8,8,8,8,8,8,8,8]} 1. e4 {[%emt 0:00:14]} c5 {[%emt 0:00:51]} 2. Nf3 {[%emt 0:00:13]} d6 {[%emt 0:00:07]} 3. Bb5+ {[%emt 0:00:54]} Nd7 {[%emt 0:00:08]} 4. d4 {[%emt 0:00:33]} cxd4 {[%emt 0:00:07]} 5. Nxd4 {[%emt 0:00:08]} Ngf6 {[%emt 0:00:37]} 6. Bd3 {[%emt 0:00:48] B51: Sicilian: Moscow Variation (3 Bb5+) without 3...Bd7.} Nc5 {[%emt 0:01:17]} 7. Nc3 {[%emt 0:00:19]} g6 {[%emt 0:02:04]} 8. O-O {[%emt 0:01:26]} Bg7 {[%emt 0:00:06]} 9. Re1 {[%emt 0:00:42]} O-O {[%emt 0:08:57]} 10. Bf1 {[%emt 0:00:34]} Bd7 $146 {[%emt 0:02:17]} ({Predecessor:} 10... b6 11. f3 Bb7 12. Be3 a6 13. Qd2 Qc7 14. a4 Rfd8 15. Bh6 Bh8 16. Qf2 e5 {0-1 Adams,M (2687)-Volokitin,A (2665) UK-UKR Solidarity m 2023 (2)}) 11. a4 {[%emt 0:11:10]} a6 {[%emt 0:09:59]} 12. Ra3 {[%emt 0:06:21]} Rc8 {[%emt 0:07:53]} 13. h3 {[%emt 0:12:44]} Re8 {[%emt 0:09:39]} 14. a5 {[%emt 0:04:58]} Bc6 {[%emt 0:07:14]} 15. Nxc6 {[%emt 0:05:37]} Rxc6 {[%emt 0:00:20]} 16. b4 {[%emt 0:10:48]} Ncd7 {[%emt 0:00:36]} 17. Nd5 {[%emt 0:00:30]} Nxd5 {[%emt 0:14:56]} 18. exd5 {[%emt 0:00:42]} Rc7 {[%emt 0:00:04]} 19. c4 {[%emt 0:05:57]} Ne5 {[%emt 0:00:57]} 20. Rc3 {[%emt 0:03:21]} Qc8 {[%emt 0:01:34]} 21. Qb3 {[%emt 0:01:52]} e6 {[%emt 0:01:03]} 22. dxe6 {[%emt 0:02:44]} fxe6 {[%emt 0:10:41]} 23. Bb2 {[%emt 0:12:08]} d5 {[%emt 0:06:03]} 24. cxd5 {[%emt 0:02:22]} Rxc3 {[%emt 0:00:05]} 25. Bxc3 {[%emt 0:08:27]} Nf3+ {[%emt 0:00:07]} 26. gxf3 {[%emt 0:00:02]} Qxc3 {[%emt 0:00:06]} 27. Qxc3 {[%emt 0:03:42]} Bxc3 {[%emt 0:00:05]} 28. Re4 {[%emt 0:00:04]} Kf8 {[%emt 0:00:06]} 29. dxe6 {[%emt 0:00:36]} Ke7 {[%emt 0:00:05]} 30. h4 {[%emt 0:02:44]} Rd8 {[%emt 0:01:22]} 31. Rc4 {[%emt 0:00:06]} Be5 {[%emt 0:00:05]} 32. f4 {[%emt 0:00:48]} Bd6 {[%emt 0:00:06]} 33. Bg2 {[%emt 0:02:38]} Rb8 {[%emt 0:00:06]} 34. Bd5 {[%emt 0:00:29]} b6 {[%emt 0:00:31]} (34... Rf8 $16 35. Kg2 (35. Bxb7 Rb8 $16) 35... h6 36. Bxb7 Rb8) 35. Rc6 $18 {[%emt 0:00:32]} bxa5 {[%emt 0:01:56]} 36. Rxa6 {[%emt 0:00:11]} ({Weaker is} 36. bxa5 Rb5 37. Bc4 Rxa5 $11) 36... axb4 {[%emt 0:04:03]} 37. Ra7+ {[%emt 0:00:02]} Ke8 {[%emt 0:00:08]} 38. Bc6+ {[%emt 0:01:23]} Kf8 {[%emt 0:00:21]} 39. Rf7+ {[%emt 0:00:26]} ({But not} 39. Rxh7 $6 b3 $11) 39... Kg8 {[%emt 0:00:06]} 40. Rd7 {[%emt 0:00:34]} b3 {[%emt 0:02:28]} 41. Rxd6 {[%emt 0:09:41]} b2 {[%emt 0:00:14]} 42. Be4 {[%emt 0:00:04]} b1=Q+ {[%emt 0:00:05]} 43. Bxb1 {[%emt 0:00:03]} Rxb1+ {[%emt 0:00:08]} 44. Kg2 {[%emt 0:00:02]} Kg7 {[%emt 0:01:35]} 45. Rd5 {[%emt 0:05:24]} Kf6 {[%emt 0:01:27]} 46. Re5 {[%emt 0:00:05]} Ke7 {[%emt 0:01:59]} 47. Kf3 {[%emt 0:01:50]} Rh1 {[%emt 0:04:46] [#]} 48. h5 $1 {[%emt 0:03:19]} Rh3+ {[%emt 0:02:26]} 49. Kg2 {[%emt 0:00:37]} Ra3 {[%emt 0:02:52]} 50. h6 {[%emt 0:05:53]} ({White should try} 50. Re2 $16) 50... Ra1 $11 {[%emt 0:01:00]} 51. Rb5 {[%emt 0:00:41]} Kxe6 {[%emt 0:08:36]} 52. Rb7 {[%emt 0:00:06]} Ra5 {[%emt 0:00:05]} 53. Rxh7 {[%emt 0:00:37]} Rh5 $1 {[%emt 0:00:06]} 54. Kf3 {[%emt 0:02:34]} Kf6 {[%emt 0:01:33]} 55. Rh8 {[%emt 0:00:35]} Rh4 {[%emt 0:02:01]} 56. Ke3 {[%emt 0:00:46]} (56. h7 $5 Kg7 $8 57. Rc8 Kxh7 58. Rc7+ Kg8 59. Rb7 $11) 56... Kf7 {[%emt 0:01:25]} 57. Kf3 {[%emt 0:02:19]} Kf6 {[%emt 0:00:08]} 58. Kg2 {[%emt 0:00:46]} (58. h7 $5 Kg7 $8 59. Ra8 Kxh7 60. Ra7+ Kg8 61. Kg3 $11) 58... Rh5 {[%emt 0:01:32]} 59. Kg3 {[%emt 0:00:52]} Rh1 {[%emt 0:00:21]} 60. f3 {[%emt 0:01:03]} Kf7 {[%emt 0:01:36]} 61. f5 {[%emt 0:01:29]} gxf5 {[%emt 0:00:07]} 62. Kf4 {[%emt 0:00:05]} Rh3 {[%emt 0:00:08]} 63. Ra8 {[%emt 0:02:34]} Rxh6 {[%emt 0:00:13]} 64. Ra7+ {[%emt 0:00:03]} Kf8 {[%emt 0:00:08]} 65. Kxf5 {[%emt 0:00:22]} Rb6 {[%emt 0:00:04]} 1/2-1/2